bitfinex/quotes_SOLUSD_20241008
["timestamp","ask_amount","ask_price","bid_price","bid_amount"]
[1728396874358,0.12549,144.13,144.1,0.8597165]
[1728396874562,7.06379,144.13,144.1,0.8597165]
[1728396874765,6.9387,144.12,144.1,0.8597165]
[1728396874963,6.9391,144.11,144.1,0.8597165]
[1728396875165,6.9386,144.12,144.1,0.8597165]
[1728396875552,7.06369,144.13,144.1,0.8597165]
[1728396876674,7.06429,144.12,144.1,0.8597165]
[1728396876991,6.9391,144.11,144.1,0.8597165]
[1728396877275,50.966964,144.11,144.1,0.8597165]
[1728396877870,64.26105846,144.11,144.1,0.8597165]
[1728396878577,40.48417446,144.11,144.1,0.8597165]
[1728396879084,27.19008,144.11,144.1,0.8597165]
[1728396880260,63.59368696,144.11,144.1,0.8597165]
[1728396881079,39.81680296,144.11,144.1,0.8597165]
[1728396887172,64.79985765,144.11,144.1,0.8597165]
[1728396887377,64.79985765,144.11,144.1,1.65e-05]
[1728396887695,44.027864,144.1,143.96,54.82165795]
[1728396887887,6.9435,144.02,143.98,6.945]
[1728396888192,0.12549,144.05,143.96,72.18665795]
[1728396888401,20.25098,144.03,143.96,46.8265165]
[1728396888775,12.58599305,144.02,143.96,46.8265165]
[1728396888974,26.9441,144.01,143.97,6.9458]
[1728396889175,7.07019,144.0,143.96,39.8803165]
[1728396889387,6.9447,144.0,143.96,39.8803165]
[1728396889587,6.9447,144.0,143.96,46.8265165]
[1728396889896,12.58599305,144.02,143.99,6.9448]
[1728396890087,12.58599305,144.02,144.01,6.9439]
[1728396891598,12.58599305,144.02,143.99,24.3067]
[1728396891777,12.58599305,144.02,143.99,17.3619]
[1728396892173,12.58599305,144.02,143.99,24.3066]
[1728396892995,20.0,144.01,143.99,17.3619]
[1728396893801,12.58599305,144.02,143.99,17.3619]
[1728396894297,12.58599305,144.02,144.0,1.38887784]
[1728396894535,12.58599305,144.02,144.01,6.9439]
[1728396894996,6.9416,144.06,144.02,24.3013]
[1728396895197,6.9414,144.07,144.02,24.3013]
[1728396895498,6.9423,144.05,144.01,6.9439]
[1728396895800,12.84744647,144.08,144.02,6.9433]
[1728396896002,6.9411,144.07,144.03,6.9429]
[1728396896195,12.84744647,144.08,144.04,6.9421]
[1728396896598,12.84744647,144.08,144.06,6.9414]
[1728396896901,6.9406,144.08,144.01,32.30634145]
[1728396897081,6.9406,144.08,144.03,6.9428]
[1728396897281,6.9407,144.08,144.04,6.9424]
[1728396897481,29.20718339,144.11,144.0,34.7215]
[1728396897698,6.9402,144.09,144.05,6.9419]
[1728396898074,6.9406,144.08,144.04,24.2983]
[1728396898400,6.9413,144.07,144.03,6.9426]
[1728396899298,6.9407,144.08,144.04,6.9421]
[1728396899605,12.58535411,144.09,144.03,17.3568]
[1728396899789,12.58535411,144.09,144.04,6.9423]
[1728396899988,19.52585411,144.09,144.04,6.9423]
[1728396900190,20.0,144.08,144.01,17.3594]
[1728396900387,20.0,144.08,143.97,32.30634145]
[1728396900593,6.9433,144.03,143.99,6.9449]
[1728396900905,17.3529,144.07,144.01,6.9438]
[1728396900906,6.9422,144.05,144.01,6.9438]
[1728396901077,0.12549,144.06,144.0,17.3608]
[1728396901282,6.9425,144.04,144.0,24.3051]
[1728396901593,0.25098,144.06,143.97,32.30634145]
[1728396901902,44.027864,144.04,143.97,32.30634145]
[1728396902102,44.027864,144.04,143.98,6.9453]
[1728396902103,6.9434,144.03,143.98,6.9453]
[1728396902281,20.25098,144.04,143.98,6.9453]
[1728396902481,6.9449,143.99,143.96,0.8597165]
[1728396902681,6.9447,144.0,143.96,0.8597165]
[1728396902888,16.03108,144.04,143.97,6.9456]
[1728396902889,6.944,144.01,143.97,6.9456]
[1728396903607,20.0,144.01,143.96,0.8597165]
[1728396903806,6.9458,143.98,143.96,0.8597165]
[1728396904108,0.25098,144.0,143.96,0.8597165]
[1728396904301,6.9458,143.97,143.96,0.8597165]
[1728396904685,6.9455,143.98,143.96,0.8597165]
[1728396905211,6.9458,143.97,143.96,0.8597165]
[1728396905400,27.19678,143.97,143.96,0.8597165]
[1728396905584,6.9458,143.97,143.96,0.8597165]
[1728396905783,20.0,143.97,143.96,0.8597165]
[1728396906085,6.945,143.99,143.96,0.8597165]
[1728396906497,20.0,143.99,143.96,0.8597165]
[1728396906810,6.9439,144.02,143.98,6.9452]
[1728396907223,19.43118173,144.07,143.96,0.8597165]
[1728396907224,6.9444,144.0,143.96,0.8597165]
[1728396907508,17.357,144.04,143.96,0.8597165]
[1728396907509,1.20693368,144.01,143.96,0.8597165]
[1728396907707,6.9446,144.0,143.96,0.8597165]
[1728396907886,1.20693368,144.01,143.96,0.8597165]
[1728396908210,6.9457,143.98,143.96,0.8597165]
[1728396908890,20.0,143.99,143.96,0.8597165]
[1728396909087,20.0,143.99,143.96,7.8060165]
[1728396909711,20.0,143.99,143.96,0.8597165]
[1728396909899,26.945,143.99,143.96,0.8597165]
[1728396910210,19.65993953,144.0,143.96,0.8597165]
[1728396910609,12.71543953,144.0,143.96,2.24873591]
[1728396910806,12.71543953,144.0,143.96,7.8060165]
[1728396911006,6.9449,143.99,143.96,0.8597165]
[1728396911204,12.71543953,144.0,143.96,0.8597165]
[1728396911403,6.9458,143.97,143.96,0.8597165]
[1728396911916,27.19678,143.97,143.96,0.8597165]
[1728396912104,39.8513571,143.97,143.96,0.8597165]
[1728396913295,63.6282411,143.97,143.96,1.65e-05]
[1728396914006,39.8513571,143.97,143.96,1.65e-05]
[1728396914199,85.41880527,143.97,143.96,1.65e-05]
[1728396914394,109.19568927,143.97,143.96,1.65e-05]
[1728396914700,6.9507,143.87,143.82,6.9531]
[1728396914898,17.3741,143.9,143.81,18.2435165]
[1728396915095,17.3741,143.9,143.81,19.63408803]
[1728396915096,33.13807814,143.89,143.81,19.63408803]
[1728396915293,6.9511,143.87,143.81,19.63408803]
[1728396915519,6.9511,143.87,143.82,6.9529]
[1728396915820,12.77792929,143.88,143.81,18.2435165]
[1728396916120,6.9514,143.86,143.81,25.1970165]
[1728396916312,12.77792929,143.88,143.81,18.2435165]
[1728396916713,6.9508,143.87,143.81,18.2435165]
[1728396916923,12.77792929,143.88,143.83,6.9523]
[1728396917225,12.77792929,143.88,143.67,0.8597165]
[1728396917226,20.0,143.79,143.67,0.8597165]
[1728396917403,17.3812,143.84,143.71,32.30634145]
[1728396917719,20.12549,143.8,143.71,32.30634145]
[1728396918022,6.9546,143.79,143.71,32.30634145]
[1728396918207,23.776884,143.79,143.68,6.4199]
[1728396918394,20.12549,143.78,143.68,38.72624145]
[1728396918592,6.9561,143.76,143.68,38.72624145]
[1728396918791,6.9566,143.75,143.68,38.72624145]
[1728396918997,20.25098,143.74,143.68,38.72624145]
[1728396919201,0.25098,143.72,143.67,34.5368165]
[1728396919420,0.25098,143.72,143.67,0.8597165]
[1728396919597,0.25098,143.72,143.67,7.8198165]
[1728396919919,0.25098,143.73,143.67,7.8198165]
[1728396920210,20.25098,143.73,143.67,0.8597165]
[1728396920414,0.25098,143.74,143.68,6.9597]
[1728396920811,0.25098,143.74,143.69,6.9593]
[1728396921127,20.25098,143.74,143.69,6.9593]
[1728396921419,27.20818,143.74,143.67,7.8197165]
[1728396921606,20.25098,143.74,143.68,6.9597]
[1728396921795,20.25098,143.75,143.68,6.9597]
[1728396922194,45.56744817,143.8,143.67,0.8597165]
[1728396922502,6.9556,143.77,143.7,6.9585]
[1728396923117,1.208,143.7,143.68,17.3989]
[1728396923319,6.9542,143.8,143.74,6.9569]
[1728396923822,6.9546,143.79,143.72,24.3515]
[1728396924114,12.51197951,143.81,143.7,39.26474145]
[1728396924417,6.9567,143.75,143.69,6.9593]
[1728396924604,20.0,143.78,143.68,17.3989]
[1728396924924,0.25098,143.73,143.69,6.9593]
[1728396925115,0.25098,143.74,143.69,6.9593]
[1728396925502,1.33459055,143.76,143.72,6.9578]
[1728396925708,0.12549,143.75,143.72,6.9578]
[1728396926420,0.12549,143.75,143.71,17.396]
[1728396926916,0.25098,143.75,143.71,17.396]
[1728396927114,20.0,143.78,143.73,6.9572]
[1728396927314,20.0,143.77,143.73,6.9572]
[1728396927515,20.0,143.77,143.73,6.7482206]
[1728396927828,1.20883997,143.78,143.74,6.9568]
[1728396927996,1.20883997,143.78,143.71,17.396]
[1728396928201,8.16383997,143.78,143.73,6.9574]
[1728396928398,0.12549,143.77,143.74,17.3924]
[1728396928592,1.20883997,143.78,143.76,6.9559]
[1728396928810,28.62703324,143.81,143.73,32.30634145]
[1728396929013,22.64119968,143.81,143.76,17.3889]
[1728396929219,22.64119968,143.81,143.73,49.69974145]
[1728396929406,22.64119968,143.81,143.74,6.9569]
[1728396929407,6.9546,143.79,143.74,6.9569]
[1728396929597,6.9546,143.79,143.74,6.957]
[1728396930003,19.60132798,143.8,143.75,6.9564]
[1728396930217,12.64722798,143.8,143.73,32.30634145]
[1728396930411,12.64722798,143.8,143.76,6.956]
[1728396931627,6.9546,143.79,143.75,17.3903]
[1728396931819,12.64722798,143.8,143.75,24.3464]
[1728396932125,12.64722798,143.8,143.76,6.956]
[1728396932832,7.20548,143.79,143.75,17.3903]
[1728396933824,7.20548,143.79,143.75,24.3467]
[1728396934325,7.20548,143.79,143.75,17.3903]
[1728396934713,0.12549,143.79,143.75,24.3466]
[1728396934936,12.64722798,143.8,143.79,6.9545]
[1728396935227,12.64722798,143.8,143.78,6.955]
[1728396936837,12.64722798,143.8,143.77,17.3882]
[1728396937326,12.64722798,143.8,143.78,6.9546]
[1728396937831,0.12549,143.79,143.76,6.9559]
[1728396938623,0.25098,143.8,143.76,6.9559]
[1728396938833,12.47438359,143.82,143.79,6.9545]
[1728396939324,12.47438359,143.82,143.78,49.69334145]
[1728396939530,12.47438359,143.82,143.79,6.9545]
[1728396940030,12.47438359,143.82,143.8,6.9539]
[1728396940422,8.40363125,143.85,143.81,32.30634145]
[1728396940621,6.9503,143.88,143.83,24.3334]
[1728396940814,12.33679519,143.87,143.83,17.381]
[1728396941007,6.951,143.87,143.83,17.381]
[1728396941323,12.59846351,143.88,143.79,15.3429]
[1728396941620,6.9522,143.84,143.79,6.9542]
[1728396941838,6.9522,143.84,143.79,6.9541]
[1728396942206,0.12549,143.84,143.8,6.9537]
[1728396942423,7.07799,143.84,143.79,24.3399]
[1728396942624,0.12549,143.83,143.79,24.3399]
[1728396943126,7.07899,143.82,143.78,32.30634145]
[1728396943336,6.9541,143.8,143.78,32.30634145]
[1728396944645,0.12549,143.81,143.78,39.26134145]
[1728396944824,0.25098,143.82,143.79,6.9544]
[1728396945345,6.9527,143.83,143.79,6.9544]
[1728396946642,6.9522,143.84,143.79,6.9544]
[1728396946944,0.25098,143.83,143.79,6.9544]
[1728396947120,7.20378,143.83,143.78,56.64814145]
[1728396947320,0.12549,143.78,143.72,49.70044145]
[1728396947534,0.25098,143.77,143.73,6.9574]
[1728396948141,0.12549,143.77,143.72,49.70044145]
[1728396948322,0.25098,143.78,143.74,6.9569]
[1728396949425,6.9541,143.8,143.75,32.30634145]
[1728396949639,43.902374,143.84,143.77,6.9555]
[1728396949954,0.25098,143.81,143.77,6.9554]
[1728396950243,6.9536,143.81,143.77,6.9554]
[1728396951443,6.9554,143.78,143.74,29.2347]
[1728396951652,0.25098,143.8,143.71,32.30634145]
[1728396951820,6.9567,143.75,143.71,32.30634145]
[1728396952920,6.9567,143.75,143.71,39.26464145]
[1728396953354,6.9561,143.76,143.72,6.9575]
[1728396953642,0.12549,143.71,143.67,18.2604165]
[1728396954029,7.08429,143.71,143.67,18.2604165]
[1728396954428,7.08429,143.71,143.67,0.8597165]
[1728396955149,0.12549,143.71,143.67,0.8597165]
[1728396955443,6.9594,143.69,143.67,0.8597165]
[1728396956240,7.08449,143.7,143.67,0.8597165]
[1728396956446,0.12549,143.71,143.67,0.8597165]
[1728396956447,7.08399,143.71,143.67,0.8597165]
[1728396956642,0.12549,143.71,143.67,0.8597165]
[1728396956845,6.959,143.7,143.67,0.8597165]
[1728396957127,6.9599,143.68,143.67,0.8597165]
[1728396957435,7.21088,143.68,143.67,0.8597165]
[1728396957661,53.128864,143.68,143.67,0.8597165]
[1728396957828,6.9628,143.62,143.58,17.4117]
[1728396958034,25.0164,143.67,143.55,49.72124145]
[1728396958035,6.9643,143.59,143.55,49.72124145]
[1728396958228,0.12549,143.58,143.55,17.4149]
[1728396958441,0.12549,143.58,143.53,6.9667]
[1728396958640,6.9643,143.59,143.54,6.9662]
[1728396958641,0.12549,143.59,143.54,6.9662]
[1728396959257,52.2077,143.66,143.55,17.4152]
[1728396959452,6.9647,143.59,143.53,6.9667]
[1728396959655,6.9647,143.59,143.52,18.2788165]
[1728396959862,6.9647,143.59,143.54,6.9666]
[1728396960165,0.12549,143.59,143.54,6.9666]
[1728396960345,0.12549,143.6,143.52,0.8597165]
[1728396960547,0.12549,143.61,143.56,6.9657]
[1728396960742,69.34433217,143.65,143.59,6.9642]
[1728396960743,6.9614,143.65,143.59,6.9642]
[1728396960943,17.3976,143.7,143.57,32.30634145]
[1728396961144,1.20850235,143.65,143.57,32.30634145]
[1728396961344,17.3976,143.7,143.6,17.4084]
[1728396961550,1.20855126,143.66,143.6,17.4084]
[1728396961738,1.20855126,143.66,143.62,17.406]
[1728396961953,6.9594,143.69,143.64,6.9614]
[1728396962158,6.959,143.7,143.65,6.9613]
[1728396962362,6.959,143.7,143.62,18.79834254]
[1728396962363,6.96,143.68,143.63,6.9621]
[1728396962560,1.20830951,143.69,143.62,17.406]
[1728396962958,1.20830951,143.69,143.65,6.9613]
[1728396963162,1.20830951,143.69,143.67,6.9603]
[1728396963362,12.24197904,143.72,143.66,17.4013]
[1728396963553,12.24197904,143.72,143.68,6.9594]
[1728396963752,12.24197904,143.72,143.66,17.4013]
[1728396963753,12.24197904,143.72,143.69,6.9593]
[1728396964068,12.24197904,143.72,143.7,6.9589]
[1728396964249,12.24197904,143.72,143.69,6.9593]
[1728396964454,12.24197904,143.72,143.7,6.9589]
[1728396964774,12.24197904,143.72,143.68,17.3989]
[1728396965143,12.24197904,143.72,143.69,6.9594]
[1728396965351,12.24197904,143.72,143.7,6.9588]
[1728396966060,12.24197904,143.72,143.68,17.3989]
[1728396966376,19.19987904,143.72,143.68,17.3989]
[1728396966744,6.9586,143.71,143.66,6.9608]
[1728396966950,6.9589,143.7,143.65,24.3646]
[1728396967171,7.20948,143.71,143.66,6.9608]
[1728396967475,0.25098,143.71,143.62,17.4065]
[1728396967661,6.9597,143.69,143.62,17.4065]
[1728396968471,6.9598,143.69,143.62,17.4065]
[1728396968669,0.25098,143.71,143.62,17.4065]
[1728396968879,41.424564,143.71,143.62,17.4065]
[1728396969054,47.978664,143.71,143.59,17.4103]
[1728396969371,24.027864,143.68,143.59,24.3742]
[1728396969608,6.9624,143.63,143.56,17.4137]
[1728396969768,6.9628,143.62,143.58,6.9644]
[1728396969967,0.25098,143.64,143.58,6.9644]
[1728396970181,6.9624,143.63,143.58,6.9644]
[1728396970774,19.68160032,143.65,143.6,6.9637]
[1728396971071,19.68170032,143.65,143.61,6.9632]
[1728396971375,19.68170032,143.65,143.6,17.4088]
[1728396971376,0.12549,143.64,143.6,17.4088]
[1728396971750,6.9641,143.6,143.55,6.9661]
[1728396971950,6.9641,143.6,143.54,6.9666]
[1728396972150,6.9628,143.62,143.56,6.9653]
[1728396972370,0.25098,143.64,143.57,6.9652]
[1728396972748,6.9632,143.62,143.57,6.9652]
[1728396973166,0.25098,143.64,143.58,6.9647]
[1728396973366,6.9623,143.63,143.58,6.9647]
[1728396973565,6.9623,143.63,143.59,6.9642]
[1728396973791,7.21288,143.64,143.59,6.9642]
[1728396974084,6.9619,143.64,143.59,6.9642]
[1728396974579,26.87299151,143.65,143.6,6.9637]
[1728396974787,26.87299151,143.65,143.61,6.9633]
[1728396974980,12.72020032,143.65,143.62,6.9627]
[1728396975166,14.14677009,143.68,143.63,6.9621]
[1728396975564,7.18647009,143.68,143.63,6.9621]
[1728396975867,7.18647009,143.68,143.64,6.9617]
[1728396976185,12.27620899,143.7,143.64,6.9617]
[1728396976485,6.96,143.68,143.64,6.9617]
[1728396976679,6.9608,143.66,143.62,24.3687]
[1728396976985,6.96,143.68,143.63,6.9622]
[1728396977166,6.96,143.68,143.64,6.9618]
[1728396977366,6.9595,143.69,143.65,6.9612]
[1728396977565,12.27620899,143.7,143.65,6.9612]
[1728396977869,12.27620899,143.7,143.67,17.4005]
[1728396978080,12.27620899,143.7,143.67,24.3608]
[1728396978395,6.9594,143.69,143.64,60.24298374]
[1728396978680,17.3931,143.74,143.64,53.28128374]
[1728396978894,12.77321426,143.73,143.66,17.4013]
[1728396979074,6.959,143.7,143.66,17.4013]
[1728396979469,12.77321426,143.73,143.67,6.9599]
[1728396979665,12.77321426,143.73,143.69,6.959]
[1728396979867,30.16711426,143.73,143.62,35.87728374]
[1728396980082,6.959,143.7,143.66,6.9608]
[1728396980281,12.77321426,143.73,143.67,6.9602]
[1728396980488,19.73111426,143.73,143.68,6.9595]
[1728396980699,12.77321426,143.73,143.67,17.4002]
[1728396980909,12.77321426,143.73,143.69,17.3979]
[1728396981201,12.77321426,143.73,143.69,24.3568]
[1728396981592,19.73071426,143.73,143.69,24.3568]
[1728396981798,12.77321426,143.73,143.66,17.4018]
[1728396982123,12.77321426,143.73,143.63,24.3675]
[1728396982313,17.3965,143.71,143.63,6.9622]
[1728396982516,23.776884,143.7,143.62,17.4063]
[1728396982696,0.25098,143.69,143.62,17.4063]
[1728396983106,6.9617,143.65,143.59,39.9529]
[1728396983714,6.9609,143.66,143.61,6.9628]
[1728396983920,6.9609,143.66,143.61,6.9632]
[1728396984103,6.9609,143.66,143.62,6.9626]
[1728396984304,0.25098,143.67,143.59,6.9642]
[1728396984504,6.9613,143.66,143.58,17.4112]
[1728396984707,6.961,143.66,143.61,6.9631]
[1728396985022,6.9615,143.65,143.6,24.3718]
[1728396985392,6.961,143.66,143.61,6.9631]
[1728396986039,0.25098,143.67,143.6,17.4085]
[1728396986197,6.9604,143.67,143.63,6.9622]
[1728396986897,19.30490466,143.68,143.64,6.9618]
[1728396987105,12.34490466,143.68,143.64,6.9618]
[1728396987306,19.30490466,143.68,143.64,6.9618]
[1728396988020,19.30490466,143.68,143.63,6.9621]
[1728396988222,12.34490466,143.68,143.66,6.9608]
[1728396988501,12.34490466,143.68,143.67,6.9603]
[1728396988636,8.16593699,143.72,143.66,17.4015]
[1728396988831,6.958,143.72,143.68,6.9598]
[1728396989143,7.18232898,143.74,143.68,6.9598]
[1728396989144,8.3901234,143.74,143.69,6.9593]
[1728396989347,7.18232898,143.74,143.68,53.27628374]
[1728396989545,6.9566,143.75,143.7,24.3554]
[1728396989913,6.9566,143.75,143.7,17.3966]
[1728396990154,19.60198744,143.76,143.71,6.9584]
[1728396990335,12.64588744,143.76,143.72,6.9577]
[1728396990542,12.64588744,143.76,143.73,6.9571]
[1728396991337,12.64588744,143.76,143.72,17.3942]
[1728396991540,12.64588744,143.76,143.75,6.9565]
[1728396991854,12.64588744,143.76,143.74,6.9569]
[1728396992625,12.64588744,143.76,143.75,6.9565]
[1728396992949,14.13678788,143.81,143.74,53.26918374]
[1728396993137,7.18288788,143.81,143.74,53.26918374]
[1728396993339,6.9566,143.75,143.71,53.27278374]
[1728396993642,6.9565,143.75,143.71,60.23108374]
[1728396994141,6.9555,143.77,143.71,53.27278374]
[1728396994648,6.9561,143.76,143.71,53.27278374]
[1728396994820,6.9561,143.76,143.71,60.23108374]
[1728396995143,6.9561,143.76,143.72,6.9577]
[1728396995641,12.43954685,143.78,143.72,6.9577]
[1728396995810,6.9556,143.77,143.72,6.9577]
[1728396996339,19.39474685,143.78,143.73,6.9573]
[1728396996996,6.9575,143.73,143.69,6.9592]
[1728396997220,6.9573,143.74,143.69,6.9592]
[1728396997429,6.958,143.72,143.68,60.23598374]
[1728396997714,6.9585,143.71,143.65,17.4028]
[1728396997924,6.9585,143.71,143.67,6.9603]
[1728396998223,6.9589,143.7,143.66,6.9607]
[1728396998718,6.9585,143.71,143.67,6.9602]
[1728396999514,6.9581,143.72,143.68,8.3518025]
[1728396999719,6.9581,143.72,143.68,6.9599]
[1728397000224,6.9578,143.73,143.69,6.9593]
[1728397000524,0.12549,143.75,143.68,6.9597]
[1728397000714,6.9582,143.72,143.68,6.9597]
[1728397000922,6.9576,143.73,143.68,6.9597]
[1728397001292,6.9576,143.73,143.67,17.4003]
[1728397001496,6.9576,143.73,143.68,6.9597]
[1728397001696,6.9576,143.73,143.69,6.9593]
[1728397002119,0.12549,143.75,143.69,6.9593]
[1728397002417,6.9571,143.74,143.7,6.9589]
[1728397002809,6.9566,143.75,143.71,6.9583]
[1728397003207,6.957,143.74,143.7,6.9588]
[1728397003402,6.9575,143.73,143.69,24.3575]
[1728397003612,6.9575,143.73,143.69,17.3982]
[1728397004322,0.25098,143.75,143.69,17.3982]
[1728397004502,6.958,143.72,143.69,17.3982]
[1728397004897,0.25098,143.75,143.69,17.3982]
[1728397005103,0.12549,143.75,143.69,17.3982]
[1728397005421,17.64278,143.75,143.66,17.4013]
[1728397006008,6.9599,143.68,143.64,6.9617]
[1728397006215,6.9605,143.67,143.63,17.4049]
[1728397006511,6.9605,143.67,143.63,24.3671]
[1728397006919,6.9609,143.66,143.6,23.7364]
[1728397007229,6.9622,143.64,143.6,23.7364]
[1728397007529,6.9625,143.63,143.59,6.9641]
[1728397007727,6.962,143.64,143.57,53.28948374]
[1728397007898,6.962,143.64,143.6,6.9637]
[1728397008102,6.962,143.64,143.59,6.9641]
[1728397008526,0.12549,143.65,143.59,6.9641]
[1728397009021,6.9623,143.63,143.59,6.9641]
[1728397009406,6.9623,143.63,143.58,6.9643]
[1728397010027,6.9636,143.61,143.57,17.4122]
[1728397010404,12.44397965,143.64,143.57,24.3773]
[1728397010405,6.9629,143.62,143.57,24.3773]
[1728397010727,6.9637,143.61,143.57,17.4122]
[1728397011031,6.9634,143.61,143.57,17.4122]
[1728397012427,17.65708,143.63,143.54,17.4162]
[1728397012626,6.9651,143.58,143.54,17.4162]
[1728397012808,6.9662,143.55,143.51,24.3874]
[1728397013206,6.9652,143.57,143.53,6.9671]
[1728397013535,6.9657,143.56,143.51,24.3873]
[1728397013706,6.9662,143.55,143.51,24.3873]
[1728397013906,6.9657,143.56,143.51,24.3873]
[1728397016223,6.9658,143.56,143.51,17.4196]
[1728397016415,6.9658,143.56,143.52,7.8273165]
[1728397017105,7.42673957,143.58,143.52,0.8597165]
[1728397017333,14.39153957,143.58,143.53,6.9667]
[1728397017633,6.9653,143.57,143.53,6.9667]
[1728397017830,12.5569054,143.59,143.53,6.9667]
[1728397017831,19.72621353,143.59,143.53,17.4173]
[1728397018037,19.72621353,143.59,143.54,1.39328853]
[1728397018212,1.20872483,143.62,143.54,1.39328853]
[1728397018412,1.20872483,143.62,143.52,36.73700024]
[1728397018709,6.9641,143.6,143.56,6.9655]
[1728397019438,6.9644,143.59,143.55,24.381]
[1728397019932,1.20872483,143.62,143.55,24.381]
[1728397020235,6.9634,143.61,143.56,6.9652]
[1728397020435,6.9638,143.6,143.56,6.9652]
[1728397020745,1.20872483,143.62,143.59,17.41]
[1728397021035,19.43742295,143.63,143.59,17.41]
[1728397021231,12.47472295,143.63,143.52,36.73700024]
[1728397021437,6.9649,143.58,143.53,6.9668]
[1728397021615,6.9649,143.58,143.54,6.9666]
[1728397022037,6.9654,143.57,143.53,24.3841]
[1728397023621,6.9638,143.6,143.56,24.3795]
[1728397023943,29.82239406,143.63,143.54,6.9665]
[1728397024234,29.82239406,143.63,143.52,36.73700024]
[1728397024235,6.9671,143.53,143.52,0.8597165]
[1728397024823,50.994964,143.53,143.52,0.8597165]
[1728397025332,50.994964,143.53,143.52,0.6089165]
[1728397025720,63.90974667,143.53,143.52,0.6089165]
[1728397026430,43.90974667,143.53,143.52,0.6089165]
[1728397026617,40.13286267,143.53,143.52,0.6089165]
[1728397027538,20.13286267,143.53,143.52,0.6089165]
[1728397027716,12.91478267,143.53,143.52,0.6089165]
[1728397028834,17.4098,143.6,143.52,0.6089165]
[1728397029032,13.00640675,143.58,143.52,0.6089165]
[1728397029238,6.9666,143.55,143.52,0.6089165]
[1728397029742,6.9652,143.57,143.52,7.5763165]
[1728397029923,6.9652,143.57,143.52,0.6089165]
[1728397030124,19.97130675,143.58,143.53,6.9668]
[1728397030443,13.00640675,143.58,143.54,6.9666]
[1728397031342,13.00640675,143.58,143.55,6.9661]
[1728397031730,13.00640675,143.58,143.56,6.9657]
[1728397032036,7.17705259,143.6,143.57,6.9648]
[1728397032537,7.17705259,143.6,143.56,17.4142]
[1728397032739,6.9629,143.62,143.57,6.9651]
[1728397032935,6.9629,143.62,143.58,6.9646]
[1728397033128,6.9633,143.61,143.56,24.3798]
[1728397033330,6.9638,143.6,143.56,24.3798]
[1728397033840,6.9636,143.61,143.56,24.3798]
[1728397034139,6.9628,143.62,143.58,6.9646]
[1728397034546,12.83255377,143.63,143.59,6.964]
[1728397034547,19.79495377,143.63,143.59,6.964]
[1728397034839,19.79495377,143.63,143.6,6.9637]
[1728397034840,12.83255377,143.63,143.6,6.9637]
[1728397035041,12.83255377,143.63,143.58,17.4113]
[1728397035349,8.16900574,143.64,143.6,6.9637]
[1728397035643,6.9619,143.64,143.58,17.4113]
[1728397035950,6.9626,143.63,143.58,24.3759]
[1728397036444,1.20714004,143.66,143.57,6.5979]
[1728397036445,21.20714004,143.66,143.57,6.5979]
[1728397036740,21.20714004,143.66,143.55,24.381]
[1728397036741,6.9641,143.6,143.55,24.381]
[1728397036944,6.9656,143.57,143.53,6.4189]
[1728397037177,6.9663,143.55,143.52,34.1742165]
[1728397037446,6.965,143.58,143.54,6.9665]
[1728397037829,6.966,143.56,143.52,34.1742165]
[1728397038046,6.9653,143.57,143.52,34.1742165]
[1728397038214,0.12549,143.59,143.53,6.967]
[1728397038418,44.027864,143.59,143.52,0.6089165]
[1728397038615,6.9663,143.55,143.52,0.6089165]
[1728397039253,6.9667,143.54,143.52,0.6089165]
[1728397039553,7.09079,143.57,143.53,6.9668]
[1728397040543,6.9658,143.56,143.52,0.6089165]
[1728397040742,0.12549,143.56,143.52,0.6089165]
[1728397040952,7.21808,143.53,143.52,0.6089165]
[1728397041549,50.994964,143.53,143.52,1.65e-05]
[1728397041755,50.994964,143.53,143.4,35.93761603]
[1728397041756,6.9711,143.45,143.4,6.9733]
[1728397042166,20.0,143.48,143.39,32.671]